fUST/lending_fUST_20240228
["ID","MTS","AMOUNT","RATE_DAILY","PERIOD"]
[315466738,1709058644875,-752.44,0.00019452,2]
[315466739,1709058644888,-4115.22,0.00019452,2]
[315466740,1709058644899,-500.0,0.00019452,2]
[315466741,1709058644910,-357.309255,0.00019452,2]
[315466742,1709058644923,-357.309255,0.00019452,2]
[315466743,1709058644934,-357.309255,0.00019452,2]
[315466744,1709058644945,-357.309255,0.00019452,2]
[315466745,1709058644956,-956.85,0.00019452,2]
[315466746,1709058644967,-500.0,0.00019452,2]
[315466747,1709058644977,-500.0,0.00019452,2]
[315466748,1709058644988,-500.0,0.00019452,2]
[315466749,1709058644999,-1518.47,0.00019452,2]
[315466750,1709058645010,-761.31,0.00019452,2]
[315466751,1709058645021,-2412.22,0.00019452,2]
[315466752,1709058645032,-3268.59,0.00019452,2]
[315466753,1709058645044,-500.0,0.00019452,2]
[315466754,1709058645054,-1784.28,0.00019452,2]
[315466755,1709058645065,-6829.05,0.00019452,2]
[315466756,1709058645075,-500.0,0.00019452,2]
[315466757,1709058645086,-486.0,0.00019452,2]
[315466758,1709058645096,-3388.23,0.00019452,2]
[315466759,1709058645107,-1297.45,0.00019452,2]
[315466760,1709058645118,-500.0,0.00019452,2]
[315466761,1709058645128,-500.0,0.00019452,2]
[315466762,1709058645139,-151.0,0.00019452,2]
[315466763,1709058645150,-151.0,0.00019452,2]
[315466764,1709058645161,-151.0,0.00019452,2]
[315466765,1709058645171,-151.0,0.00019452,2]
[315466766,1709058645181,-151.0,0.00019452,2]
[315466767,1709058645192,-151.0,0.00019452,2]
[315466768,1709058645203,-2748.9,0.00019452,2]
[315466769,1709058645214,-21514.08,0.00019452,2]
[315466770,1709058645224,-500.0,0.00019452,2]
[315466771,1709058645235,-2473.48,0.00019452,2]
[315466772,1709058645246,-500.0,0.00019452,2]
[315466773,1709058645257,-1985.16,0.00019452,2]
[315466774,1709058645269,-1710.32,0.00019452,2]
[315466775,1709058645279,-500.0,0.00019452,2]
[315466776,1709058645290,-500.0,0.00019452,2]
[315466777,1709058645302,-500.0,0.00019452,2]
[315466778,1709058645313,-500.0,0.00019452,2]
[315466779,1709058645324,-500.0,0.00019452,2]
[315466780,1709058645335,-500.0,0.00019452,2]
[315466781,1709058645346,-500.0,0.00019452,2]
[315466782,1709058645357,-500.0,0.00019452,2]
[315466783,1709058645368,-2026.14,0.00019452,2]
[315466784,1709058645378,-411.27876987,0.00019452,2]
[315466785,1709058645390,-500.0,0.00019452,2]
[315466786,1709058645401,-500.0,0.00019452,2]
[315466787,1709058645413,-500.0,0.00019452,2]
[315466788,1709058645424,-635.9,0.00019452,2]
[315466789,1709058645435,-661.7,0.00019452,2]
[315466790,1709058645447,-1566.93,0.00019452,2]
[315466791,1709058645458,-3525.97,0.00019452,2]
[315466792,1709058645469,-9741.35,0.00019452,2]
[315466793,1709058645481,-500.0,0.00019452,2]
[315466794,1709058645492,-3787.65,0.00019452,2]
[315466795,1709058645503,-500.0,0.00019452,2]
[315466796,1709058645514,-596.09,0.00019452,2]
[315466797,1709058645525,-5132.01,0.00019452,2]
[315466798,1709058645536,-698.66,0.00019452,2]
[315466799,1709058645546,-17260.58,0.00019452,2]
[315466800,1709058645557,-1561.24,0.00019452,2]
[315466801,1709058645692,-500.0,0.00019452,2]
[315466802,1709058645705,-200.6117409,0.000195,2]
[315466803,1709058645714,-267.021663,0.000195,2]
[315466804,1709058645724,-267.021663,0.000195,2]
[315466805,1709058645734,-200.6117409,0.000195,2]
[315466806,1709058645743,-153.0,0.000195,2]
[315466807,1709058645758,-200.6117409,0.000195,2]
[315466808,1709058645768,-200.6117409,0.000195,2]
[315466809,1709058645778,-200.6117409,0.000195,2]
[315466810,1709058645787,-153.0,0.000195,2]
[315466811,1709058645798,-153.0,0.000195,2]
[315466812,1709058645807,-153.0,0.000195,2]
[315466813,1709058645816,-153.0,0.000195,2]
[315466814,1709058645826,-153.0,0.000195,2]
[315466815,1709058645836,-200.6117409,0.000195,2]
[315466816,1709058645846,-153.0,0.000195,2]
[315466817,1709058645855,-200.6117409,0.000195,2]
[315466818,1709058645864,-153.0,0.000195,2]
[315466819,1709058645873,-500.0,0.00019518,2]
[315466820,1709058645883,-11430.71289347,0.00019519,2]
[315466821,1709058645898,-1006.0,0.00019519,2]
[315466826,1709058646488,-500.0,0.00019442,3]
[315466827,1709058646499,-1695.2,0.00019442,3]
[315466853,1709059749117,4701.60348692,0.00027511,30]
[315466869,1709059838516,-169.11988706,0.00018892,2]
[315466870,1709059838525,-2047.10979235,0.00018893,2]
[315466871,1709059838577,-305.3706782,0.00018893,2]
[315466872,1709059838589,-220.80573927,0.00018893,2]
[315466873,1709059838598,-2153.67797935,0.00018894,2]
[315466874,1709059838607,-175.0545357,0.00019078,2]
[315466875,1709059838617,-736.72976923,0.00019078,2]
[315466876,1709059838626,-760.16,0.00019168,3]
[315466877,1709059838635,-3603.57197645,0.00019175,4]
[315466879,1709059838647,-3381.92845686,0.00019175,4]
[315466931,1709059841752,-546.1335093,0.00019175,4]
[315466932,1709059841764,-434.86006002,0.00019175,4]
[315466933,1709059841774,-515.57,0.00019178,2]
[315466934,1709059841783,-769.69,0.00019178,2]
[315466935,1709059841793,-1081.11,0.00019178,2]
[315466936,1709059841802,-500.0,0.00019178,2]
[315466937,1709059841811,-500.0,0.00019178,2]
[315466938,1709059841820,-500.0,0.00019178,2]
[315466939,1709059841829,-500.0,0.00019178,2]
[315466940,1709059841839,-500.0,0.00019178,2]
[315466942,1709059841848,-190.55274162,0.00019178,2]
[315466943,1709059841857,-500.0,0.00019178,2]
[315466945,1709059841866,-500.0,0.00019178,2]
[315466947,1709059841875,-679.0,0.00019178,2]
[315466949,1709059841885,-403.61859012,0.00019178,2]
[315466950,1709059841894,-500.0,0.00019178,2]
[315466951,1709059841903,-500.0,0.00019178,2]
[315466952,1709059841912,-199.40844968,0.00019178,2]
[315466953,1709059841921,-500.0,0.00019178,2]
[315466954,1709059841930,-500.0,0.00019178,2]
[315466955,1709059841940,-500.0,0.00019178,2]
[315466956,1709059841949,-500.0,0.00019178,2]
[315466957,1709059841959,-500.0,0.00019178,2]
[315466958,1709059841968,-500.0,0.00019178,2]
[315466959,1709059841977,-500.32469974,0.00019178,2]
[315466960,1709059841986,-500.0,0.00019178,2]
[315466961,1709059841995,-500.0,0.00019178,2]
[315466962,1709059842005,-1189.33,0.00019178,2]
[315466963,1709059842014,-155.0,0.00019178,2]
[315466964,1709059842023,-500.0,0.00019178,2]
[315466965,1709059842033,-500.0,0.00019178,2]
[315466966,1709059842042,-606.40277477,0.00019178,2]
[315466967,1709059842052,-1478.87,0.00019178,2]
[315466968,1709059842062,-500.0,0.00019178,2]
[315466969,1709059842073,-260.25765248,0.00019178,2]
[315466970,1709059842083,-1271.38,0.00019178,2]
[315466971,1709059842092,-1436.35,0.00019178,2]
[315466972,1709059842101,-546.42,0.00019178,2]
[315466973,1709059842110,-500.0,0.00019178,2]
[315466974,1709059842125,-744.59,0.00019178,2]
[315466975,1709059842134,-500.9,0.00019178,2]
[315466976,1709059842143,-500.0,0.00019178,2]
[315466977,1709059842153,-640.44,0.00019178,2]
[315466978,1709059842162,-689.74,0.00019178,2]
[315466979,1709059842172,-717.67,0.00019178,2]
[315466980,1709059842181,-877.11,0.00019178,2]
[315466981,1709059842192,-500.0,0.00019178,2]
[315466982,1709059842201,-4146.4,0.00019178,2]
[315466983,1709059842211,-1391.93,0.00019178,2]
[315466984,1709059842220,-697.87,0.00019178,2]
[315466985,1709059842229,-2211.2,0.00019178,2]
[315466986,1709059842238,-278.26132627,0.00019178,2]
[315466987,1709059842250,-5981.69867373,0.00019178,2]
[315466988,1709059842259,-500.0,0.00019178,2]
[315466989,1709059842268,-500.0,0.00019178,2]
[315466990,1709059842277,-500.0,0.00019178,2]
[315466991,1709059842286,-1635.59,0.00019178,2]
[315466992,1709059842295,-500.0,0.00019178,2]
[315466993,1709059842305,-3105.87,0.00019178,2]
[315466994,1709059842314,-500.0,0.00019178,2]
[315466995,1709059842323,-628.52,0.00019178,2]
[315466996,1709059842332,-2996.21,0.00019178,2]
[315466997,1709059842341,-500.0,0.00019178,2]
[315466998,1709059842351,-2652.5,0.00019178,2]
[315466999,1709059842361,-5419.33169053,0.00019178,2]
[315467028,1709059846623,-457.5,0.00019178,2]
[315467064,1709060588966,233.363329,0.00017924,2]
[315467179,1709061033071,-2573.28620982,0.00018038,2]
[315467180,1709061033082,-155.20176229,0.00018041,2]
[315467181,1709061033092,-8230.0382401,0.00018051,2]
[315467182,1709061033101,-190.61800923,0.00018289,2]
[315467183,1709061033111,-1042.10185825,0.000189,2]
[315467184,1709061033120,-634.06205686,0.00019105,2]
[315467185,1709061033130,-640.33992365,0.00019173,2]
[315467186,1709061033139,-155.19865428,0.00019178,2]
[315467187,1709061033149,-20.58352627,0.00019178,2]
[315467188,1709061033167,-479.41647373,0.00019178,2]
[315467189,1709061033176,-500.0,0.00019178,2]
[315467190,1709061033186,-500.0,0.00019178,2]
[315467191,1709061033195,-500.0,0.00019178,2]
[315467192,1709061033205,-377.97121598,0.00019178,2]
[315467193,1709061033216,-1139.77,0.00019178,2]
[315467194,1709061033227,-500.0,0.00019178,2]
[315467195,1709061033236,-500.0,0.00019178,2]
[315467196,1709061033246,-500.0,0.00019178,2]
[315467197,1709061033256,-1376.51,0.00019178,2]
[315467198,1709061033265,-548.49,0.00019178,2]
[315467199,1709061033274,-1815.80869816,0.00019178,2]
[315467200,1709061033286,-483.54130184,0.00019178,2]
[315467201,1709061033295,-500.0,0.00019178,2]
[315467202,1709061033304,-650.71,0.00019178,2]
[315467203,1709061033314,-500.0,0.00019178,2]
[315467204,1709061033323,-175.27403538,0.00019178,2]
[315467205,1709061033332,-500.0,0.00019178,2]
[315467206,1709061033341,-500.0,0.00019178,2]
[315467207,1709061033350,-500.0,0.00019178,2]
[315467208,1709061033360,-602.33,0.00019178,2]
[315467209,1709061033370,-500.0,0.00019178,2]
[315467210,1709061033379,-555.31,0.00019178,2]
[315467211,1709061033389,-276.70000131,0.00019178,2]
[315467212,1709061033398,-224.5571896,0.00019178,2]
[315467213,1709061033408,-210.65405992,0.00019178,2]
[315467214,1709061033417,-29.49342271,0.00019178,2]
[315467228,1709061037848,-912.8,0.00018037,2]
[315467241,1709061041029,-678.82159516,0.00018037,2]
[315467242,1709061041039,-470.50657729,0.00019178,2]
[315467243,1709061041049,-500.0,0.00019178,2]
[315467244,1709061041059,-1417.25,0.00019178,2]
[315467245,1709061041070,-500.0,0.00019178,2]
[315467246,1709061041079,-155.0,0.00019178,2]
[315467247,1709061041088,-1218.4,0.00019178,2]
[315467248,1709061041108,-500.0,0.00019178,2]
[315467249,1709061041119,-713.57,0.00019178,2]
[315467250,1709061041130,-737.62,0.00019178,2]
[315467251,1709061041140,-500.0,0.00019178,2]
[315467252,1709061041152,-500.0,0.00019178,2]
[315467253,1709061041161,-500.0,0.00019178,2]
[315467254,1709061041171,-661.0,0.00019178,2]
[315467255,1709061041181,-500.0,0.00019178,2]
[315467256,1709061041359,-500.0,0.00019178,2]
[315467257,1709061041369,-687.77,0.00019178,2]
[315467258,1709061041378,-2119.07,0.00019178,2]
[315467259,1709061041387,-3973.64,0.00019178,2]
[315467260,1709061041399,-500.0,0.00019178,2]
[315467261,1709061041408,-208.66852145,0.00019178,2]
[315467262,1709061041418,-840.56,0.00019178,2]
[315467263,1709061041427,-500.0,0.00019178,2]
[315467264,1709061041437,-1333.93,0.00019178,2]
[315467265,1709061041447,-500.0,0.00019178,2]
[315467266,1709061041455,-668.79,0.00019178,2]
[315467267,1709061041464,-5784.63875272,0.00019178,2]
[315467268,1709061041485,-214.49124728,0.00019178,2]
[315467269,1709061041498,-291.35929127,0.00019178,2]
[315467270,1709061041507,-123.27729325,0.00019178,2]
[315467271,1709061041520,-598.0205773,0.00019178,2]
[315467403,1709061050272,155.54834929,0.00018,2]
[315467405,1709061703024,500.0,0.00026511,120]
[315467406,1709061704186,500.0,0.00026511,120]
[315467407,1709061704980,500.0,0.00026511,120]
[315467408,1709061705988,355.84,0.00026511,120]
[315467409,1709061744474,191.1427665,0.00017904,3]
[315467410,1709061749485,191.14276649,0.00017905,3]
[315467411,1709061814458,3484.2675263,0.00017841,2]
[315467412,1709061834494,169.11988706,0.00018,2]
[315467413,1709061840864,1591.62159516,0.00018,2]
[315467431,1709062052866,250.0,0.00017573,2]
[315467432,1709062118617,9158.5831415,0.00017573,2]
[315467444,1709062231967,-169.11988706,0.00018031,2]
[315467445,1709062231978,-446.96878023,0.00018032,2]
[315467446,1709062231992,-171.45050475,0.00018039,2]
[315467447,1709062232005,-61.91282425,0.00018039,2]
[315467448,1709062232015,-2279.31871104,0.00019175,4]
[315467449,1709062232029,-1102.60974582,0.00019175,4]
[315467450,1709062232040,-300.0,0.00019177,2]
[315467451,1709062232051,-500.0,0.00019178,2]
[315467452,1709062232060,-500.0,0.00019178,2]
[315467453,1709062232070,-500.0,0.00019178,2]
[315467454,1709062232080,-500.0,0.00019178,2]
[315467455,1709062232091,-500.0,0.00019178,2]
[315467456,1709062232101,-500.0,0.00019178,2]
[315467457,1709062232111,-500.0,0.00019178,2]
[315467458,1709062232120,-598.06,0.00019178,2]
[315467459,1709062232130,-553.01,0.00019178,2]
[315467460,1709062232140,-178.44318447,0.00019178,2]
[315467461,1709062232149,-500.0,0.00019178,2]
[315467462,1709062232158,-500.0,0.00019178,2]
[315467463,1709062232168,-500.0,0.00019178,2]
[315467464,1709062232178,-500.0,0.00019178,2]
[315467465,1709062232188,-500.0,0.00019178,2]
[315467466,1709062232198,-1533.01,0.00019178,2]
[315467467,1709062232207,-2224.38,0.00019178,2]
[315467468,1709062232217,-500.0,0.00019178,2]
[315467469,1709062232227,-500.0,0.00019178,2]
[315467470,1709062232237,-500.0,0.00019178,2]
[315467471,1709062232246,-500.0,0.00019178,2]
[315467472,1709062232256,-600.0,0.00019178,2]
[315467473,1709062232266,-727.72,0.00019178,2]
[315467474,1709062232275,-644.43,0.00019178,2]
[315467475,1709062232285,-213.61733,0.00019178,2]
[315467476,1709062232295,-1059.82,0.00019178,2]
[315467477,1709062232304,-213.61733,0.00019178,2]
[315467478,1709062232314,-500.0,0.00019178,2]
[315467479,1709062232323,-151.0,0.00019178,2]
[315467480,1709062232332,-151.0,0.00019178,2]
[315467481,1709062232343,-500.0,0.00019178,2]
[315467482,1709062232353,-500.0,0.00019178,2]
[315467483,1709062232363,-500.0,0.00019178,2]
[315467484,1709062232373,-500.0,0.00019178,2]
[315467485,1709062232383,-500.25635179,0.00019178,2]
[315467486,1709062232392,-500.0,0.00019178,2]
[315467487,1709062232402,-500.0,0.00019178,2]
[315467488,1709062232412,-500.0,0.00019178,2]
[315467489,1709062232422,-500.0,0.00019178,2]
[315467490,1709062232431,-469.37213106,0.00019178,2]
[315467491,1709062232441,-500.0,0.00019178,2]
[315467492,1709062232451,-500.0,0.00019178,2]
[315467493,1709062232461,-500.0,0.00019178,2]
[315467494,1709062232470,-1422.91,0.00019178,2]
[315467495,1709062232480,-1218.09,0.00019178,2]
[315467496,1709062232489,-258.11466525,0.00019178,2]
[315467497,1709062232499,-1170.723451,0.00019178,2]
[315467498,1709062232510,-1170.723451,0.00019178,2]
[315467499,1709062232519,-1170.723451,0.00019178,2]
[315467500,1709062232529,-1170.723451,0.00019178,2]
[315467501,1709062232539,-500.0,0.00019178,2]
[315467502,1709062232549,-500.0,0.00019178,2]
[315467503,1709062232559,-500.0,0.00019178,2]
[315467504,1709062232569,-500.0,0.00019178,2]
[315467505,1709062232579,-500.0,0.00019178,2]
[315467506,1709062232591,-500.0,0.00019178,2]
[315467507,1709062232601,-500.0,0.00019178,2]
[315467508,1709062232611,-500.0,0.00019178,2]
[315467509,1709062232620,-705.71,0.00019178,2]
[315467510,1709062232631,-500.0,0.00019178,2]
[315467511,1709062232640,-500.0,0.00019178,2]
[315467512,1709062232650,-155.0,0.00019178,2]
[315467513,1709062232660,-4918.17,0.00019178,2]
[315467514,1709062232670,-500.0,0.00019178,2]
[315467515,1709062232679,-500.0,0.00019178,2]
[315467516,1709062232688,-500.0,0.00019178,2]
[315467517,1709062232698,-500.0,0.00019178,2]
[315467518,1709062232707,-500.0,0.00019178,2]
[315467519,1709062232717,-642.86,0.00019178,2]
[315467520,1709062232726,-500.0,0.00019178,2]
[315467521,1709062232736,-16871.48,0.00019178,2]
[315467522,1709062232746,-500.0,0.00019178,2]
[315467523,1709062232755,-285.847404,0.00019178,2]
[315467524,1709062232765,-285.847404,0.00019178,2]
[315467525,1709062232774,-654.29,0.00019178,2]
[315467526,1709062232784,-285.847404,0.00019178,2]
[315467527,1709062232794,-285.847404,0.00019178,2]
[315467528,1709062232803,-500.0,0.00019178,2]
[315467529,1709062232813,-500.0,0.00019178,2]
[315467530,1709062232823,-501.82614517,0.00019178,2]
[315467531,1709062232833,-500.0,0.00019178,2]
[315467532,1709062232845,-500.0,0.00019178,2]
[315467533,1709062232854,-500.0,0.00019178,2]
[315467534,1709062232869,-500.0,0.00019178,2]
[315467535,1709062232879,-500.0,0.00019178,2]
[315467536,1709062232888,-389.42636231,0.00019178,2]
[315467537,1709062232904,-645.31911357,0.00019178,2]
[315467613,1709062241207,-2773.32452412,0.00019178,2]
[315467614,1709062241217,-500.0,0.00019178,2]
[315467615,1709062241227,-679.95,0.00019178,2]
[315467616,1709062241238,-271.2184854,0.00019178,2]
[315467617,1709062241247,-224.98749679,0.00019178,2]
[315467629,1709062243113,-257.26883127,0.00019178,2]
[315467644,1709062246040,-17.74367194,0.00019178,2]
[315467645,1709062246049,-500.0,0.00019178,2]
[315467646,1709062246058,-831.36,0.00019178,2]
[315467647,1709062246067,-2114.04,0.00019178,2]
[315467648,1709062246077,-1299.19,0.00019178,2]
[315467649,1709062246086,-500.0,0.00019178,2]
[315467650,1709062246096,-661.76,0.00019178,2]
[315467652,1709062246107,-500.0,0.00019178,2]
[315467653,1709062246116,-5807.59,0.00019178,2]
[315467654,1709062246126,-501.56260452,0.00019178,2]
[315467655,1709062246135,-500.0,0.00019178,2]
[315467656,1709062246145,-500.0,0.00019178,2]
[315467657,1709062246154,-500.0,0.00019178,2]
[315467658,1709062246163,-303.52479769,0.00019178,2]
[315467659,1709062246176,-196.47520231,0.00019178,2]
[315467660,1709062246186,-500.0,0.00019178,2]
[315467661,1709062246195,-366.1266684,0.00019178,2]
[315467662,1709062246213,-2711.7433316,0.00019178,2]
[315467663,1709062246222,-151.0,0.00019178,2]
[315467664,1709062246232,-151.0,0.00019178,2]
[315467665,1709062246241,-1618.22,0.00019178,2]
[315467666,1709062246251,-3906.24265528,0.00019178,2]
[315467758,1709063432200,-248.31598902,0.00018897,2]
[315467760,1709063432210,-980.43139638,0.00018897,2]
[315467762,1709063432220,-155.20176229,0.00018898,2]
[315467764,1709063432230,-1579.71969416,0.000189,2]
[315467766,1709063432241,-759.85921325,0.00019,2]
[315467768,1709063432254,-1740.14078675,0.00019,2]
[315467770,1709063432264,-620.70317603,0.00019057,2]
[315467773,1709063432277,-186.56352856,0.00019076,2]
[315467775,1709063432289,-246.88436121,0.00019078,2]
[315467778,1709063432298,-3500.0,0.000191,2]
[315467781,1709063432307,-379.7,0.00019168,3]
[315467782,1709063432318,-189.85,0.00019168,3]
[315467784,1709063432327,-569.6,0.00019168,3]
[315467786,1709063432337,-1006.38681231,0.00019177,2]
[315467789,1709063432347,-500.0,0.00019178,2]
[315467790,1709063432359,-500.0,0.00019178,2]
[315467792,1709063432370,-718.23,0.00019178,2]
[315467794,1709063432380,-1059.63,0.00019178,2]
[315467813,1709063432557,-503.4326383,0.00019178,2]
[315467815,1709063432568,-151.0,0.00019178,2]
[315467817,1709063432579,-151.0,0.00019178,2]
[315467819,1709063432588,-151.735874,0.00019178,2]
[315467821,1709063432598,-500.0,0.00019178,2]
[315467823,1709063432608,-263.23262185,0.00019178,2]
[315467824,1709063432618,-500.0,0.00019178,2]
[315467825,1709063432628,-500.0,0.00019178,2]
[315467826,1709063432638,-500.0,0.00019178,2]
[315467828,1709063432651,-500.0,0.00019178,2]
[315467830,1709063432661,-500.0,0.00019178,2]
[315467832,1709063432672,-500.0,0.00019178,2]
[315467833,1709063432683,-590.86804832,0.00019178,2]
[315467835,1709063432693,-500.0,0.00019178,2]
[315467837,1709063432704,-3798.98,0.00019178,2]
[315467839,1709063432714,-500.0,0.00019178,2]
[315467840,1709063432724,-1505.95,0.00019178,2]
[315467841,1709063432734,-196.50906257,0.00019178,2]
[315467842,1709063432744,-259.19778228,0.00019178,2]
[315467843,1709063432755,-2152.53,0.00019178,2]
[315467845,1709063432768,-500.0,0.00019178,2]
[315467847,1709063432778,-500.0,0.00019178,2]
[315467849,1709063432788,-500.0,0.00019178,2]
[315467851,1709063432798,-638.41,0.00019178,2]
[315467853,1709063432808,-500.0,0.00019178,2]
[315467855,1709063432818,-192.255597,0.00019178,2]
[315467857,1709063432827,-192.255597,0.00019178,2]
[315467859,1709063432836,-192.255597,0.00019178,2]
[315467860,1709063432845,-192.255597,0.00019178,2]
[315467862,1709063432855,-192.255597,0.00019178,2]
[315467864,1709063432865,-192.255597,0.00019178,2]
[315467866,1709063432873,-192.255597,0.00019178,2]
[315467868,1709063432884,-192.255597,0.00019178,2]
[315467870,1709063432896,-192.255597,0.00019178,2]
[315467872,1709063432906,-192.255597,0.00019178,2]
[315467874,1709063432916,-192.255597,0.00019178,2]
[315467876,1709063432926,-192.255597,0.00019178,2]
[315467878,1709063432936,-192.255597,0.00019178,2]
[315467880,1709063432947,-192.255597,0.00019178,2]
[315467882,1709063432959,-163.97744344,0.00019178,2]
[315467884,1709063432969,-500.0,0.00019178,2]
[315467886,1709063432979,-500.0,0.00019178,2]
[315467888,1709063432989,-500.0,0.00019178,2]
[315467890,1709063433000,-500.0,0.00019178,2]
[315467892,1709063433009,-500.0,0.00019178,2]
[315467893,1709063433019,-501.24875421,0.00019178,2]
[315467894,1709063433029,-500.0,0.00019178,2]
[315467895,1709063433039,-500.0,0.00019178,2]
[315467896,1709063433048,-500.0,0.00019178,2]
[315467897,1709063433058,-573.70486622,0.00019178,2]
[315467898,1709063433068,-1174.73,0.00019178,2]
[315467899,1709063433078,-500.0,0.00019178,2]
[315467900,1709063433088,-500.0,0.00019178,2]
[315467901,1709063433098,-500.0,0.00019178,2]
[315467902,1709063433107,-500.0,0.00019178,2]
[315467903,1709063433117,-500.0,0.00019178,2]
[315467904,1709063433127,-500.0,0.00019178,2]
[315467905,1709063433137,-500.0,0.00019178,2]
[315467906,1709063433149,-500.0,0.00019178,2]
[315467907,1709063433159,-500.0,0.00019178,2]
[315467908,1709063433169,-500.0,0.00019178,2]
[315467909,1709063433179,-500.0,0.00019178,2]
[315467910,1709063433189,-500.0,0.00019178,2]
[315467911,1709063433199,-1427.29,0.00019178,2]
[315467912,1709063433209,-1507.72,0.00019178,2]
[315467913,1709063433218,-151.0,0.00019178,2]
[315467914,1709063433228,-151.0,0.00019178,2]
[315467915,1709063433239,-500.0,0.00019178,2]
[315467916,1709063433253,-1216.55,0.00019178,2]
[315467917,1709063433263,-936.578761,0.00019178,2]
[315467918,1709063433274,-936.578761,0.00019178,2]
[315467919,1709063433284,-936.578761,0.00019178,2]
[315467920,1709063433295,-601.67,0.00019178,2]
[315467921,1709063433305,-936.578761,0.00019178,2]
[315467922,1709063433316,-936.578761,0.00019178,2]
[315467923,1709063433325,-936.578761,0.00019178,2]
[315467924,1709063433335,-936.578761,0.00019178,2]
[315467925,1709063433345,-936.578761,0.00019178,2]
[315467926,1709063433356,-936.578761,0.00019178,2]
[315467927,1709063433366,-936.578761,0.00019178,2]
[315467928,1709063433376,-936.578761,0.00019178,2]
[315467929,1709063433386,-936.578761,0.00019178,2]
[315467930,1709063433396,-936.578761,0.00019178,2]
[315467931,1709063433405,-936.578761,0.00019178,2]
[315467932,1709063433415,-936.578761,0.00019178,2]
[315467933,1709063433424,-936.578761,0.00019178,2]
[315467934,1709063433434,-500.0,0.00019178,2]
[315467935,1709063433444,-151.144151,0.00019178,2]
[315467936,1709063433453,-500.0,0.00019178,2]
[315467937,1709063433462,-500.0,0.00019178,2]
[315467938,1709063433472,-500.0,0.00019178,2]
[315467939,1709063433481,-500.0,0.00019178,2]
[315467940,1709063433492,-500.0,0.00019178,2]
[315467941,1709063433502,-500.0,0.00019178,2]
[315467942,1709063433512,-500.0,0.00019178,2]
[315467943,1709063433521,-3451.17,0.00019178,2]
[315467944,1709063433532,-500.0,0.00019178,2]
[315467945,1709063433542,-374.58,0.00019178,2]
[315467946,1709063433551,-9964.75316248,0.00019178,2]
[315467947,1709063433566,-5719.59942804,0.00019178,2]
[315467948,1709063433579,-839.54740948,0.00019178,2]
[315467949,1709063433588,-682.99,0.00019178,2]
[315467950,1709063433598,-500.60648921,0.00019178,2]
[315467951,1709063433607,-500.0,0.00019178,2]
[315467952,1709063433616,-500.0,0.00019178,2]
[315467953,1709063433626,-500.0,0.00019178,2]
[315467954,1709063433636,-500.0,0.00019178,2]
[315467955,1709063433647,-500.0,0.00019178,2]
[315467956,1709063433657,-228.677923,0.00019178,2]
[315467957,1709063433667,-228.677923,0.00019178,2]
[315467958,1709063433676,-228.677923,0.00019178,2]
[315467959,1709063433685,-500.0,0.00019178,2]
[315467960,1709063433694,-228.677923,0.00019178,2]
[315467961,1709063433703,-228.677923,0.00019178,2]
[315467962,1709063433711,-148.56126234,0.00019178,2]
[315467963,1709063433723,-80.11666066,0.00019178,2]